[Event "*** Titled Tuesday Blitz"]
[Site "Chess.com"]
[Date "2020.04.14"]
[Round "4"]
[White "KazakhFighter04"]
[Black "BilodeauA"]
[Result "1/2-1/2"]
[WhiteElo "2731"]
[BlackElo "2904"]
[TimeControl "180+1"]
[EndTime "10:39:38 PDT"]
[Termination "Game drawn by agreement"]

1. d4 {[%clk 0:03:00.8]} 1... d5 {[%clk 0:02:59.6]} 2. c4 {[%clk 0:03:00.2]}
2... dxc4 {[%clk 0:03:00.5]} 3. e4 {[%clk 0:02:57.9]} 3... Nf6 {[%clk
0:03:00.5]} 4. e5 {[%clk 0:02:57.9]} 4... Nd5 {[%clk 0:03:00.7]} 5. Bxc4 {[%clk
0:02:58.6]} 5... Nb6 {[%clk 0:03:01]} 6. Bb3 {[%clk 0:02:58.5]} 6... Nc6 {[%clk
0:03:01.4]} 7. Nf3 {[%clk 0:02:58]} 7... Bf5 {[%clk 0:02:57.7]} 8. Nc3 {[%clk
0:02:54.5]} 8... e6 {[%clk 0:02:57.6]} 9. Be3 {[%clk 0:02:55.1]} 9... Be7 {[%clk
0:02:54.5]} 10. O-O {[%clk 0:02:54.1]} 10... Qd7 {[%clk 0:02:54.9]} 11. d5
{[%clk 0:02:39.7]} 11... exd5 {[%clk 0:02:36.9]} 12. Nxd5 {[%clk 0:02:40.6]}
12... Nxd5 {[%clk 0:02:29.6]} 13. Qxd5 {[%clk 0:02:40]} 13... Qxd5 {[%clk
0:01:45.2]} 14. Bxd5 {[%clk 0:02:40.9]} 14... Nd8 {[%clk 0:01:45.5]} 15. Nd4
{[%clk 0:02:35.1]} 15... Bd7 {[%clk 0:01:44.1]} 16. f4 {[%clk 0:02:34.6]} 16...
c6 {[%clk 0:01:28.8]} 17. Be4 {[%clk 0:02:30.3]} 17... O-O {[%clk 0:01:23.4]}
18. Nf5 {[%clk 0:02:28.4]} 18... Bxf5 {[%clk 0:01:21.2]} 19. Bxf5 {[%clk
0:02:28.6]} 19... Ne6 {[%clk 0:01:22.1]} 20. Rfd1 {[%clk 0:02:20.5]} 20... Rfd8
{[%clk 0:01:18.6]} 21. Kf2 {[%clk 0:02:19.1]} 21... g6 {[%clk 0:01:15.9]} 22.
Be4 {[%clk 0:02:15.4]} 22... Bc5 {[%clk 0:01:15.2]} 23. Rac1 {[%clk 0:02:10.7]}
23... Bb6 {[%clk 0:01:11]} 24. g3 {[%clk 0:02:01.3]} 24... Kf8 {[%clk 0:01:11]}
25. b4 {[%clk 0:01:57.2]} 25... Ke7 {[%clk 0:01:10.2]} 26. a4 {[%clk 0:01:55]}
26... f5 {[%clk 0:00:43.1]} 27. Bf3 {[%clk 0:01:24.8]} 27... Bxe3+ {[%clk
0:00:32.4]} 28. Kxe3 {[%clk 0:01:24.2]} 28... a6 {[%clk 0:00:22.7]} 29. h4
{[%clk 0:01:15]} 29... h5 {[%clk 0:00:21.8]} 30. Be2 {[%clk 0:00:56.3]} 30... a5
{[%clk 0:00:21.5]} 31. b5 {[%clk 0:00:42.1]} 31... Rxd1 {[%clk 0:00:15.3]} 32.
Rxd1 {[%clk 0:00:41.1]} 32... Rd8 {[%clk 0:00:12.8]} 33. Rxd8 {[%clk 0:00:38.1]}
33... Nxd8 {[%clk 0:00:10.5]} 34. bxc6 {[%clk 0:00:26.5]} 34... Nxc6 {[%clk
0:00:10.5]} 35. Bb5 {[%clk 0:00:25.7]} 35... Nb4 {[%clk 0:00:10.3]} 36. Kd4
{[%clk 0:00:19.7]} 36... b6 {[%clk 0:00:10.3]} 1/2-1/2

[Event "*** Titled Tuesday Blitz"]
[Site "Chess.com"]
[Date "2020.04.14"]
[Round "4"]
[White "narutosmith"]
[Black "Nastya_Rakhmangulova"]
[Result "1-0"]
[WhiteElo "2204"]
[BlackElo "2393"]
[TimeControl "180+1"]
[EndTime "10:39:38 PDT"]
[Termination "narutosmith won on time"]

1. c4 {[%clk 0:03:00.9]} 1... c6 {[%clk 0:03:00]} 2. d4 {[%clk 0:02:59.7]} 2...
d5 {[%clk 0:03:00.5]} 3. Nc3 {[%clk 0:03:00.2]} 3... Nf6 {[%clk 0:03:01]} 4. e3
{[%clk 0:02:59.9]} 4... a6 {[%clk 0:02:56.1]} 5. Nf3 {[%clk 0:02:58.6]} 5... e6
{[%clk 0:02:49.8]} 6. Bd3 {[%clk 0:02:55.9]} 6... dxc4 {[%clk 0:02:49.5]} 7.
Bxc4 {[%clk 0:02:55.9]} 7... b5 {[%clk 0:02:50.2]} 8. Bd3 {[%clk 0:02:55.7]}
8... Bb7 {[%clk 0:02:50.7]} 9. O-O {[%clk 0:02:54.1]} 9... c5 {[%clk 0:02:48.2]}
10. dxc5 {[%clk 0:02:45.4]} 10... Bxc5 {[%clk 0:02:49.1]} 11. Qe2 {[%clk
0:02:45.4]} 11... O-O {[%clk 0:02:48.4]} 12. e4 {[%clk 0:02:45.5]} 12... Nbd7
{[%clk 0:02:12]} 13. Bg5 {[%clk 0:02:44.3]} 13... Qb6 {[%clk 0:02:05.4]} 14. a4
{[%clk 0:02:38]} 14... b4 {[%clk 0:02:01.5]} 15. a5 {[%clk 0:02:38]} 15... Qc6
{[%clk 0:02:01.2]} 16. Bxf6 {[%clk 0:01:58.1]} 16... Nxf6 {[%clk 0:01:58.5]} 17.
Na4 {[%clk 0:01:58.2]} 17... Ba7 {[%clk 0:01:36.7]} 18. Rfc1 {[%clk 0:01:54.4]}
18... Qd7 {[%clk 0:01:36.9]} 19. Ne5 {[%clk 0:01:51]} 19... Qd4 {[%clk
0:01:26.9]} 20. Nf3 {[%clk 0:01:43.7]} 20... Qd7 {[%clk 0:01:27]} 21. Nb6 {[%clk
0:01:38.7]} 21... Bxb6 {[%clk 0:01:23.6]} 22. axb6 {[%clk 0:01:39.6]} 22... Rfd8
{[%clk 0:01:18.6]} 23. Bxa6 {[%clk 0:01:26.5]} 23... Bxe4 {[%clk 0:01:18]} 24.
Rd1 {[%clk 0:00:55.6]} 24... Bxf3 {[%clk 0:00:51]} 25. gxf3 {[%clk 0:00:38.6]}
25... Nd5 {[%clk 0:00:47.5]} 26. Bc4 {[%clk 0:00:20.6]} 26... Rxa1 {[%clk
0:00:37.4]} 27. Rxa1 {[%clk 0:00:21.5]} 27... Nf4 {[%clk 0:00:37.1]} 28. Qe4
{[%clk 0:00:17.5]} 28... Qd6 {[%clk 0:00:09]} 29. b7 {[%clk 0:00:15.7]} 29... e5
{[%clk 0:00:09.4]} 30. Ra8 {[%clk 0:00:12.4]} 30... Rb8 {[%clk 0:00:09]} 31.
Rxb8+ {[%clk 0:00:11.7]} 31... Qxb8 {[%clk 0:00:09.9]} 32. Qc6 {[%clk
0:00:11.7]} 1-0

[Event "*** Titled Tuesday Blitz"]
[Site "Chess.com"]
[Date "2020.04.14"]
[Round "4"]
[White "AttilaTurzo"]
[Black "silverback96"]
[Result "0-1"]
[WhiteElo "2491"]
[BlackElo "2213"]
[TimeControl "180+1"]
[EndTime "10:39:39 PDT"]
[Termination "silverback96 won by resignation"]

1. d4 {[%clk 0:03:00.9]} 1... Nf6 {[%clk 0:02:58.5]} 2. Nf3 {[%clk 0:02:58.6]}
2... c5 {[%clk 0:02:56.6]} 3. d5 {[%clk 0:02:51.7]} 3... e6 {[%clk 0:02:52.9]}
4. Nc3 {[%clk 0:02:46.2]} 4... Nxd5 {[%clk 0:02:52.5]} 5. Nxd5 {[%clk
0:02:47.1]} 5... exd5 {[%clk 0:02:53.3]} 6. Qxd5 {[%clk 0:02:48]} 6... Nc6
{[%clk 0:02:53.6]} 7. e4 {[%clk 0:02:47.2]} 7... d6 {[%clk 0:02:54]} 8. Be2
{[%clk 0:02:40.9]} 8... Be6 {[%clk 0:02:48.4]} 9. Qg5 {[%clk 0:02:33.7]} 9...
Nb4 {[%clk 0:02:29]} 10. Qd2 {[%clk 0:02:22.1]} 10... d5 {[%clk 0:02:25.3]} 11.
Bb5+ {[%clk 0:02:10.1]} 11... Bd7 {[%clk 0:01:34.4]} 12. Bxd7+ {[%clk
0:01:53.8]} 12... Qxd7 {[%clk 0:01:35.3]} 13. exd5 {[%clk 0:01:52.3]} 13...
O-O-O {[%clk 0:01:24.9]} 14. c4 {[%clk 0:01:43.7]} 14... Re8+ {[%clk 0:01:22.5]}
15. Kf1 {[%clk 0:01:15.7]} 15... Qf5 {[%clk 0:01:22]} 16. b3 {[%clk 0:01:10.4]}
16... Nc2 {[%clk 0:01:08.1]} 17. Nh4 {[%clk 0:00:54.1]} 17... Qe4 {[%clk
0:01:07.5]} 18. f3 {[%clk 0:00:53.9]} 18... Qe1+ {[%clk 0:01:05]} 19. Qxe1
{[%clk 0:00:51.1]} 19... Rxe1+ {[%clk 0:01:05.9]} 20. Kf2 {[%clk 0:00:49.3]}
20... Rxh1 {[%clk 0:01:06.8]} 21. Rb1 {[%clk 0:00:48.9]} 21... g6 {[%clk
0:00:54.6]} 22. f4 {[%clk 0:00:36.8]} 22... Bd6 {[%clk 0:00:47.2]} 23. Nf3
{[%clk 0:00:36.1]} 23... Bxf4 {[%clk 0:00:44.6]} 24. Ng1 {[%clk 0:00:31.5]}
24... Bxc1 {[%clk 0:00:40.8]} 25. Rxc1 {[%clk 0:00:32.4]} 25... Nd4 {[%clk
0:00:41.3]} 26. g3 {[%clk 0:00:31.3]} 26... Rxh2+ {[%clk 0:00:37.9]} 27. Kf1
{[%clk 0:00:31.2]} 27... Rxa2 {[%clk 0:00:38.8]} 28. Nh3 {[%clk 0:00:30]} 28...
Re8 {[%clk 0:00:37.6]} 29. Ng5 {[%clk 0:00:30.3]} 29... Ree2 {[%clk 0:00:37.6]}
30. Rb1 {[%clk 0:00:24.6]} 30... Rf2+ {[%clk 0:00:37.6]} 31. Kg1 {[%clk
0:00:24.5]} 31... Nf3+ {[%clk 0:00:36.5]} 32. Nxf3 {[%clk 0:00:23.5]} 32... Rxf3
{[%clk 0:00:37.4]} 33. b4 {[%clk 0:00:23.8]} 33... Rxg3+ {[%clk 0:00:37.9]} 34.
Kf1 {[%clk 0:00:23.3]} 34... cxb4 {[%clk 0:00:36.6]} 35. Rxb4 {[%clk 0:00:24.2]}
35... h5 {[%clk 0:00:35.9]} 36. c5 {[%clk 0:00:22.1]} 36... h4 {[%clk 0:00:34]}
37. Rxh4 {[%clk 0:00:21.5]} 37... Rb3 {[%clk 0:00:33.4]} 38. Re4 {[%clk
0:00:16.9]} 38... Rb1+ {[%clk 0:00:33.7]} 39. Re1 {[%clk 0:00:17.8]} 39... Rxe1+
{[%clk 0:00:34.6]} 40. Kxe1 {[%clk 0:00:18.7]} 40... g5 {[%clk 0:00:33.3]} 41.
d6 {[%clk 0:00:18.9]} 41... g4 {[%clk 0:00:33.5]} 42. Kf1 {[%clk 0:00:18.2]}
42... g3 {[%clk 0:00:33.7]} 43. Kg1 {[%clk 0:00:14.6]} 43... Kd7 {[%clk
0:00:34]} 0-1

[Event "*** Titled Tuesday Blitz"]
[Site "Chess.com"]
[Date "2020.04.14"]
[Round "4"]
[White "wannabe2700"]
[Black "malandragem"]
[Result "0-1"]
[WhiteElo "2660"]
[BlackElo "2519"]
[TimeControl "180+1"]
[EndTime "10:39:40 PDT"]
[Termination "malandragem won by resignation"]

1. e4 {[%clk 0:02:58.7]} 1... c5 {[%clk 0:02:59.2]} 2. d4 {[%clk 0:02:55.7]}
2... cxd4 {[%clk 0:02:58.8]} 3. Nf3 {[%clk 0:02:55.8]} 3... e6 {[%clk
0:02:58.4]} 4. Nxd4 {[%clk 0:02:56.1]} 4... Nf6 {[%clk 0:02:58.1]} 5. Nc3 {[%clk
0:02:42.8]} 5... d6 {[%clk 0:02:57.9]} 6. g4 {[%clk 0:02:41.6]} 6... Nc6 {[%clk
0:02:57.5]} 7. g5 {[%clk 0:02:34.7]} 7... Nd7 {[%clk 0:02:57.8]} 8. h4 {[%clk
0:02:30.4]} 8... Be7 {[%clk 0:02:57.7]} 9. Bg2 {[%clk 0:02:25.9]} 9... O-O
{[%clk 0:02:57.8]} 10. O-O {[%clk 0:02:24]} 10... a6 {[%clk 0:02:56.3]} 11. Be3
{[%clk 0:02:19.8]} 11... Nxd4 {[%clk 0:02:56.1]} 12. Qxd4 {[%clk 0:02:18.8]}
12... b5 {[%clk 0:02:55.8]} 13. a4 {[%clk 0:02:16.1]} 13... bxa4 {[%clk
0:02:46.4]} 14. Rxa4 {[%clk 0:02:13.4]} 14... Rb8 {[%clk 0:02:46.8]} 15. b3
{[%clk 0:02:06.9]} 15... Ne5 {[%clk 0:02:46.5]} 16. f4 {[%clk 0:01:56.6]} 16...
Ng4 {[%clk 0:02:26.8]} 17. f5 {[%clk 0:01:41.9]} 17... Nxe3 {[%clk 0:02:14.1]}
18. Qxe3 {[%clk 0:01:41.4]} 18... a5 {[%clk 0:02:06]} 19. Qf3 {[%clk 0:01:13.3]}
19... Qc7 {[%clk 0:01:46.6]} 20. f6 {[%clk 0:01:07.4]} 20... Bd8 {[%clk
0:01:47]} 21. fxg7 {[%clk 0:00:53.1]} 21... Qc5+ {[%clk 0:01:47]} 22. Kh1 {[%clk
0:00:52]} 22... Kxg7 {[%clk 0:01:47.5]} 23. Rc4 {[%clk 0:00:32.2]} 23... Qe5
{[%clk 0:01:39.1]} 24. Ra4 {[%clk 0:00:22.7]} 24... Ba6 {[%clk 0:01:38.5]} 25.
Rf2 {[%clk 0:00:20.9]} 25... Rc8 {[%clk 0:01:27]} 26. Nd1 {[%clk 0:00:20.7]}
26... Bb5 {[%clk 0:01:10.7]} 27. Ra2 {[%clk 0:00:20.8]} 27... Bb6 {[%clk
0:01:06.3]} 28. Ne3 {[%clk 0:00:18.5]} 28... Rc3 {[%clk 0:00:49.3]} 29. Qf6+
{[%clk 0:00:17.9]} 29... Qxf6 {[%clk 0:00:49.6]} 30. gxf6+ {[%clk 0:00:17.7]}
30... Kh8 {[%clk 0:00:44.6]} 31. Nd1 {[%clk 0:00:18.6]} 31... Rg3 {[%clk
0:00:41.4]} 32. Rf3 {[%clk 0:00:16.3]} 32... Rg4 {[%clk 0:00:40.6]} 33. Ne3
{[%clk 0:00:13.6]} 33... Rxh4+ {[%clk 0:00:40.1]} 34. Bh3 {[%clk 0:00:12.9]}
34... Rxe4 {[%clk 0:00:36.8]} 35. Ng2 {[%clk 0:00:12.7]} 35... Rg8 {[%clk
0:00:31]} 36. Kh2 {[%clk 0:00:12.7]} 36... Re2 {[%clk 0:00:27.9]} 37. Rg3 {[%clk
0:00:12.2]} 37... Bg1+ {[%clk 0:00:23.8]} 38. Kxg1 {[%clk 0:00:12.7]} 38... Rxg3
{[%clk 0:00:24.4]} 39. c4 {[%clk 0:00:10.9]} 39... Rxa2 {[%clk 0:00:23.1]} 40.
cxb5 {[%clk 0:00:10.6]} 40... Rxh3 {[%clk 0:00:22.1]} 0-1

[Event "*** Titled Tuesday Blitz"]
[Site "Chess.com"]
[Date "2020.04.14"]
[Round "4"]
[White "Charlottemillard17"]
[Black "1lec"]
[Result "0-1"]
[WhiteElo "1375"]
[BlackElo "2153"]
[TimeControl "180+1"]
[EndTime "10:39:41 PDT"]
[Termination "1lec won on time"]

1. e4 {[%clk 0:03:00.9]} 1... c5 {[%clk 0:02:59.6]} 2. c3 {[%clk 0:03:00.2]}
2... Nf6 {[%clk 0:02:59.2]} 3. Bd3 {[%clk 0:02:56.3]} 3... Nc6 {[%clk
0:02:53.1]} 4. Bc2 {[%clk 0:02:55.3]} 4... d5 {[%clk 0:02:52.4]} 5. e5 {[%clk
0:02:43.6]} 5... Nxe5 {[%clk 0:02:48]} 6. d4 {[%clk 0:02:43.9]} 6... cxd4 {[%clk
0:02:40.6]} 7. cxd4 {[%clk 0:02:43]} 7... Nc6 {[%clk 0:02:39.4]} 8. Nc3 {[%clk
0:02:41.5]} 8... Bg4 {[%clk 0:02:33.1]} 9. f3 {[%clk 0:02:38.6]} 9... Bh5 {[%clk
0:02:27.1]} 10. Nge2 {[%clk 0:02:32.1]} 10... e6 {[%clk 0:02:24.6]} 11. Bg5
{[%clk 0:02:30.8]} 11... Be7 {[%clk 0:02:23.7]} 12. h4 {[%clk 0:02:22.8]} 12...
Bg6 {[%clk 0:02:22]} 13. Ba4 {[%clk 0:02:15]} 13... h6 {[%clk 0:02:20.1]} 14.
Bc1 {[%clk 0:02:03.3]} 14... Rc8 {[%clk 0:02:11.4]} 15. g4 {[%clk 0:02:01.6]}
15... Nd7 {[%clk 0:02:05.1]} 16. h5 {[%clk 0:01:59.9]} 16... Bh7 {[%clk
0:02:04.4]} 17. Rg1 {[%clk 0:01:17.7]} 17... Nb6 {[%clk 0:01:28]} 18. Bb5 {[%clk
0:01:00.5]} 18... Nc4 {[%clk 0:01:20.9]} 19. b3 {[%clk 0:00:51.6]} 19... Nb6
{[%clk 0:01:03.8]} 20. a3 {[%clk 0:00:38.4]} 20... a6 {[%clk 0:00:58.9]} 21. Bd3
{[%clk 0:00:33.1]} 21... Bh4+ {[%clk 0:00:53.4]} 22. Kf1 {[%clk 0:00:30.5]}
22... Bxd3 {[%clk 0:00:31.8]} 23. Qxd3 {[%clk 0:00:27.2]} 23... Bf6 {[%clk
0:00:32]} 24. f4 {[%clk 0:00:23.6]} 24... Qc7 {[%clk 0:00:28.9]} 25. Bd2 {[%clk
0:00:17.4]} 25... Be7 {[%clk 0:00:25.7]} 26. Qf3 {[%clk 0:00:13.3]} 26... Qd7
{[%clk 0:00:25]} 27. g5 {[%clk 0:00:12]} 27... hxg5 {[%clk 0:00:22.8]} 28. fxg5
{[%clk 0:00:12]} 28... Bd6 {[%clk 0:00:15.2]} 29. Ke1 {[%clk 0:00:06]} 29... Ne7
{[%clk 0:00:14.6]} 30. g6 {[%clk 0:00:03.9]} 30... f6 {[%clk 0:00:12.7]} 0-1

[Event "*** Titled Tuesday Blitz"]
[Site "Chess.com"]
[Date "2020.04.14"]
[Round "4"]
[White "GM-2023"]
[Black "KacperPolOK"]
[Result "0-1"]
[WhiteElo "2073"]
[BlackElo "2248"]
[TimeControl "180+1"]
[EndTime "10:39:42 PDT"]
[Termination "KacperPolOK won on time"]

1. e4 {[%clk 0:03:00.9]} 1... e6 {[%clk 0:02:57.8]} 2. d4 {[%clk 0:03:00.6]}
2... d5 {[%clk 0:02:57.3]} 3. Nc3 {[%clk 0:03:00.1]} 3... Nf6 {[%clk 0:02:55.2]}
4. e5 {[%clk 0:02:56.7]} 4... Nfd7 {[%clk 0:02:53.3]} 5. Nf3 {[%clk 0:02:57.2]}
5... c5 {[%clk 0:02:47.7]} 6. Bg5 {[%clk 0:02:57.3]} 6... Qb6 {[%clk 0:02:24]}
7. dxc5 {[%clk 0:02:56.8]} 7... Bxc5 {[%clk 0:02:22.8]} 8. Qd2 {[%clk
0:02:56.7]} 8... h6 {[%clk 0:02:18.4]} 9. Be3 {[%clk 0:02:23.8]} 9... Bxe3
{[%clk 0:02:16.9]} 10. fxe3 {[%clk 0:02:24.7]} 10... Nc6 {[%clk 0:02:13.1]} 11.
Nb5 {[%clk 0:02:19.2]} 11... O-O {[%clk 0:02:04.1]} 12. Qc3 {[%clk 0:01:50.3]}
12... Qa5 {[%clk 0:01:54.7]} 13. Qxa5 {[%clk 0:01:46.7]} 13... Nxa5 {[%clk
0:01:55.6]} 14. O-O-O {[%clk 0:01:41.7]} 14... Nc6 {[%clk 0:01:53.5]} 15. c4
{[%clk 0:01:39.5]} 15... dxc4 {[%clk 0:01:46.2]} 16. Bxc4 {[%clk 0:01:30.9]}
16... Ndxe5 {[%clk 0:01:45.2]} 17. Be2 {[%clk 0:01:13]} 17... Nxf3 {[%clk
0:01:21.3]} 18. gxf3 {[%clk 0:01:13.9]} 18... a6 {[%clk 0:01:15.1]} 19. Nd4
{[%clk 0:00:57.7]} 19... Bd7 {[%clk 0:01:13.7]} 20. Nf5 {[%clk 0:00:40.5]} 20...
Rfd8 {[%clk 0:01:09.6]} 21. Nd6 {[%clk 0:00:35.1]} 21... Rab8 {[%clk 0:01:05.8]}
22. Rhg1 {[%clk 0:00:31.5]} 22... Kf8 {[%clk 0:01:05.1]} 23. Rd2 {[%clk
0:00:30.2]} 23... g6 {[%clk 0:01:04.6]} 24. Rgd1 {[%clk 0:00:29.3]} 24... Ke7
{[%clk 0:01:05.2]} 25. f4 {[%clk 0:00:22.3]} 25... Be8 {[%clk 0:00:57.7]} 26. e4
{[%clk 0:00:21.3]} 26... e5 {[%clk 0:00:54.3]} 27. f5 {[%clk 0:00:20.4]} 27...
Nd4 {[%clk 0:00:51.5]} 28. Nc4 {[%clk 0:00:19.3]} 28... gxf5 {[%clk 0:00:50.2]}
29. exf5 {[%clk 0:00:18.5]} 29... Nxe2+ {[%clk 0:00:46]} 30. Rxe2 {[%clk
0:00:19.4]} 30... Rbc8 {[%clk 0:00:46.5]} 31. Rxe5+ {[%clk 0:00:11.7]} 31... Kf6
{[%clk 0:00:43.7]} 32. Re4 {[%clk 0:00:04.3]} 32... Kxf5 {[%clk 0:00:35.5]} 33.
Rh4 {[%clk 0:00:03.2]} 33... Rxd1+ {[%clk 0:00:31.6]} 34. Kxd1 {[%clk
0:00:03.4]} 34... Rd8+ {[%clk 0:00:31.4]} 35. Ke2 {[%clk 0:00:03.2]} 35... Bb5
{[%clk 0:00:31.8]} 36. b3 {[%clk 0:00:02.6]} 36... Kg5 {[%clk 0:00:32.1]} 37.
Re4 {[%clk 0:00:02]} 37... f5 {[%clk 0:00:29.7]} 0-1

[Event "*** Titled Tuesday Blitz"]
[Site "Chess.com"]
[Date "2020.04.14"]
[Round "4"]
[White "iLuusions"]
[Black "CalinGheorghiu"]
[Result "0-1"]
[WhiteElo "2557"]
[BlackElo "2350"]
[TimeControl "180+1"]
[EndTime "10:39:44 PDT"]
[Termination "CalinGheorghiu won by resignation"]

1. d4 {[%clk 0:03:00.9]} 1... Nf6 {[%clk 0:02:45.2]} 2. c4 {[%clk 0:03:01.8]}
2... e6 {[%clk 0:02:44.5]} 3. Nf3 {[%clk 0:02:56.8]} 3... d5 {[%clk 0:02:41.8]}
4. g3 {[%clk 0:02:54.8]} 4... Be7 {[%clk 0:02:36.7]} 5. Bg2 {[%clk 0:02:45.7]}
5... O-O {[%clk 0:02:36.2]} 6. O-O {[%clk 0:02:46.6]} 6... dxc4 {[%clk
0:02:35.1]} 7. Qc2 {[%clk 0:02:46.5]} 7... b6 {[%clk 0:02:34.6]} 8. Bg5 {[%clk
0:02:44.8]} 8... Nd5 {[%clk 0:02:33.6]} 9. Bxe7 {[%clk 0:02:42.3]} 9... Qxe7
{[%clk 0:02:33]} 10. Qxc4 {[%clk 0:02:23.8]} 10... Bb7 {[%clk 0:02:15.6]} 11. a3
{[%clk 0:01:47.1]} 11... c5 {[%clk 0:01:58.7]} 12. dxc5 {[%clk 0:01:45.4]} 12...
Rc8 {[%clk 0:01:58]} 13. Nbd2 {[%clk 0:01:42.7]} 13... Rxc5 {[%clk 0:01:56.3]}
14. Qa4 {[%clk 0:01:39.6]} 14... Nd7 {[%clk 0:01:52]} 15. b4 {[%clk 0:01:28.7]}
15... Nc3 {[%clk 0:01:43.5]} 16. Qb3 {[%clk 0:01:28.5]} 16... Nxe2+ {[%clk
0:01:42.6]} 17. Kh1 {[%clk 0:01:29.1]} 17... Rc7 {[%clk 0:01:38.8]} 18. Qd3
{[%clk 0:01:11]} 18... Nc3 {[%clk 0:01:35.7]} 19. Rfc1 {[%clk 0:01:07.6]} 19...
Rac8 {[%clk 0:01:33.7]} 20. h4 {[%clk 0:00:55.8]} 20... Nf6 {[%clk 0:01:16.5]}
21. Kg1 {[%clk 0:00:52.1]} 21... Ncd5 {[%clk 0:01:09]} 22. Rxc7 {[%clk
0:00:49.1]} 22... Qxc7 {[%clk 0:01:08.3]} 23. Nd4 {[%clk 0:00:24.2]} 23... a6
{[%clk 0:00:58.5]} 24. Ne4 {[%clk 0:00:21.3]} 24... Nxe4 {[%clk 0:00:38.1]} 25.
Bxe4 {[%clk 0:00:22.2]} 25... Nf6 {[%clk 0:00:37.1]} 26. Bxb7 {[%clk 0:00:19.9]}
26... Qxb7 {[%clk 0:00:38]} 27. Ne2 {[%clk 0:00:20.3]} 27... b5 {[%clk
0:00:28.9]} 28. Rd1 {[%clk 0:00:16.8]} 28... g6 {[%clk 0:00:23.9]} 29. Nf4
{[%clk 0:00:15.6]} 29... Qc6 {[%clk 0:00:14.9]} 30. Qd4 {[%clk 0:00:14.5]} 30...
Ng4 {[%clk 0:00:08.5]} 31. h5 {[%clk 0:00:14.5]} 31... e5 {[%clk 0:00:08.5]} 32.
Qd2 {[%clk 0:00:03]} 32... exf4 {[%clk 0:00:08.5]} 33. Qxf4 {[%clk 0:00:03.9]}
33... gxh5 {[%clk 0:00:07.8]} 34. Qg5+ {[%clk 0:00:03.9]} 34... Qg6 {[%clk
0:00:08.3]} 0-1

[Event "*** Titled Tuesday Blitz"]
[Site "Chess.com"]
[Date "2020.04.14"]
[Round "4"]
[White "Kobalia"]
[Black "IMTominho"]
[Result "1-0"]
[WhiteElo "2668"]
[BlackElo "2839"]
[TimeControl "180+1"]
[EndTime "10:39:45 PDT"]
[Termination "Kobalia won by resignation"]

1. e4 {[%clk 0:03:00.9]} 1... e5 {[%clk 0:02:58.8]} 2. Nf3 {[%clk 0:03:00.1]}
2... Nf6 {[%clk 0:02:58.8]} 3. Nxe5 {[%clk 0:02:56.4]} 3... d6 {[%clk
0:02:58.6]} 4. Nf3 {[%clk 0:02:55.8]} 4... Nxe4 {[%clk 0:02:58.3]} 5. d3 {[%clk
0:02:56.1]} 5... Nf6 {[%clk 0:02:57.3]} 6. d4 {[%clk 0:02:56.7]} 6... Be7 {[%clk
0:02:57.7]} 7. Bd3 {[%clk 0:02:57.1]} 7... O-O {[%clk 0:02:58.6]} 8. O-O {[%clk
0:02:57]} 8... Bg4 {[%clk 0:02:58.6]} 9. h3 {[%clk 0:02:51.7]} 9... Bh5 {[%clk
0:02:58.1]} 10. c4 {[%clk 0:02:50.7]} 10... Nbd7 {[%clk 0:02:52.7]} 11. Nc3
{[%clk 0:02:49.1]} 11... Re8 {[%clk 0:02:50.9]} 12. Bf4 {[%clk 0:02:45.6]} 12...
Nf8 {[%clk 0:02:49.3]} 13. d5 {[%clk 0:02:40.9]} 13... c6 {[%clk 0:02:47]} 14.
dxc6 {[%clk 0:02:39.2]} 14... bxc6 {[%clk 0:02:47.9]} 15. Re1 {[%clk 0:02:35]}
15... Ne6 {[%clk 0:02:47.1]} 16. Bh2 {[%clk 0:02:28.2]} 16... a5 {[%clk
0:02:42.7]} 17. Bc2 {[%clk 0:02:24.9]} 17... Qb6 {[%clk 0:02:26.4]} 18. g4
{[%clk 0:02:11.8]} 18... Bg6 {[%clk 0:02:25.8]} 19. Bxg6 {[%clk 0:02:11.2]}
19... hxg6 {[%clk 0:02:26.7]} 20. b3 {[%clk 0:02:06]} 20... Rad8 {[%clk
0:02:24.8]} 21. Qc2 {[%clk 0:01:58.2]} 21... d5 {[%clk 0:02:20.3]} 22. Rad1
{[%clk 0:01:49.2]} 22... Bb4 {[%clk 0:02:16.8]} 23. g5 {[%clk 0:01:33.2]} 23...
Ne4 {[%clk 0:01:36.9]} 24. Nxe4 {[%clk 0:01:32.6]} 24... Bxe1 {[%clk 0:01:36.6]}
25. Nd6 {[%clk 0:01:32.6]} 25... Bb4 {[%clk 0:01:10]} 26. Nxe8 {[%clk
0:01:30.7]} 26... Rxe8 {[%clk 0:01:10.9]} 27. cxd5 {[%clk 0:01:28.5]} 27... cxd5
{[%clk 0:01:11.8]} 28. Rxd5 {[%clk 0:01:27]} 28... Qb7 {[%clk 0:01:11.6]} 29.
Qd1 {[%clk 0:01:18.9]} 29... Rc8 {[%clk 0:01:08.7]} 30. h4 {[%clk 0:01:11.9]}
30... Ba3 {[%clk 0:00:57]} 31. Kg2 {[%clk 0:01:07.1]} 31... Rc3 {[%clk
0:00:56.5]} 32. Rd7 {[%clk 0:00:50.4]} 32... Qe4 {[%clk 0:00:54.3]} 33. Bg3
{[%clk 0:00:43.5]} 33... Qg4 {[%clk 0:00:43.5]} 34. Rxf7 {[%clk 0:00:32.9]}
34... Kh7 {[%clk 0:00:20.5]} 35. Qe1 {[%clk 0:00:16.9]} 35... Bd6 {[%clk
0:00:13.4]} 36. Qxc3 {[%clk 0:00:14.9]} 36... Nf4+ {[%clk 0:00:11]} 37. Rxf4
{[%clk 0:00:14]} 37... Bxf4 {[%clk 0:00:11.9]} 38. Qd4 {[%clk 0:00:13.5]} 1-0